[Event "Berlin Championship 2024"]
[Site "Berlin"]
[Date "2024.04.05"]
[Round "7.5"]
[White "Noetzel, Felix"]
[Black "Hesse, Henrik"]
[Result "0-1"]
[ECO "A29"]
[WhiteElo "2172"]
[BlackElo "2312"]
[Annotator "RC"]
[PlyCount "136"]
[EventDate "2024.03.30"]
[EventType "swiss"]
[EventCountry "GER"]
[SourceTitle "playchess.com"]
[Source "ChessBase"]
[SourceQuality "1"]
[TimeControl "40/5400+30:1800+30"]

1. c4 {[%emt 0:00:06]} Nf6 {[%emt 0:00:14]} 2. Nc3 {[%emt 0:00:06]} e5 {[%emt 0:10:55]} 3. g3 {[%emt 0:00:34]} d5 {[%emt 0:01:21]} 4. cxd5 {[%emt 0:00:07]} Nxd5 {[%emt 0:00:03]} 5. Bg2 {[%emt 0:00:11]} Nb6 {[%emt 0:00:04]} 6. Nf3 {[%emt 0:00:10]} Nc6 {[%emt 0:00:07]} 7. O-O {[%emt 0:00:28]} Be7 {[%emt 0:00:06]} 8. a3 {[%emt 0:00:16]} a5 {[%emt 0:01:49]} 9. d3 {[%emt 0:00:15]} O-O {[%emt 0:00:20]} 10. Be3 {[%emt 0:01:14]} Re8 {[%emt 0:10:01]} 11. Rc1 {[%emt 0:09:46]} Bf8 {[%emt 0:00:48]} 12. Nb5 {[%emt 0:17:46]} Nd5 {[%emt 0:21:48]} 13. Bc5 {[%emt 0:02:23]} Bxc5 {[%emt 0:00:53]} 14. Rxc5 {[%emt 0:00:06]} Be6 {[%emt 0:01:28]} 15. Nd2 {[%emt 0:12:08]} Re7 {[%emt 0:19:40]} 16. Ne4 {[%emt 0:10:31]} f6 {[%emt 0:00:45]} 17. Qd2 {[%emt 0:18:41]} a4 {[%emt 0:05:21]} 18. h4 {[%emt 0:09:45]} Nb8 {[%emt 0:13:29]} 19. f4 {[%emt 0:08:20]} exf4 {[%emt 0:04:04]} 20. gxf4 {[%emt 0:00:06]} Kh8 {[%emt 0:02:08]} 21. f5 {[%emt 0:00:22]} Bg8 {[%emt 0:00:01]} 22. Kh1 {[%emt 0:03:52]} c6 {[%emt 0:01:07]} 23. Nd4 {[%emt 0:01:44]} Nc7 {[%emt 0:02:38]} 24. Qe3 {[%emt 0:01:07]} Nd7 {[%emt 0:00:24]} 25. Rcc1 {[%emt 0:00:11]} Ne5 {[%emt 0:01:28]} 26. Nc2 {[%emt 0:00:53]} Nd5 {[%emt 0:00:31]} 27. Qg3 {[%emt 0:00:08]} Qb6 {[%emt 0:00:49]} 28. Rb1 {[%emt 0:01:33]} Nf7 {[%emt 0:01:10]} 29. Rg1 {[%emt 0:02:11]} Nh6 {[%emt 0:00:20]} 30. Bh3 {[%emt 0:00:00]} Rf8 {[%emt 0:00:53]} 31. Qf3 {[%emt 0:00:00]} Qc7 {[%emt 0:00:23]} 32. e3 {[%emt 0:00:16]} c5 {[%emt 0:00:15]} 33. Rg2 {[%emt 0:00:58]} b6 {[%emt 0:00:37]} 34. Rbg1 {[%emt 0:00:06]} Qe5 {[%emt 0:00:03]} 35. Rg3 {[%emt 0:00:50]} Rd7 {[%emt 0:01:10]} 36. Qg2 {[%emt 0:00:37]} Rff7 {[%emt 0:00:20]} 37. d4 {[%emt 0:00:25]} cxd4 {[%emt 0:00:25]} 38. exd4 {[%emt 0:00:19]} Qf4 {[%emt 0:00:16]} 39. Qf3 {[%emt 0:00:47]} Qxh4 {[%emt 0:00:16]} 40. Kh2 {[%emt 0:00:27]} Rfe7 {[%emt 0:01:06]} 41. Nf2 {[%emt 0:08:29]} Qf4 {[%emt 0:03:17]} 42. Nd3 {[%emt 0:01:58]} Qxf3 {[%emt 0:04:20]} 43. Rxf3 {[%emt 0:00:05]} Re2+ {[%emt 0:00:49]} 44. Rg2 {[%emt 0:02:59]} Rxg2+ {[%emt 0:00:12]} 45. Kxg2 {[%emt 0:02:12]} Ne7 {[%emt 0:04:31]} 46. Ndb4 {[%emt 0:06:46]} Bb3 {[%emt 0:03:17]} 47. Kf2 {[%emt 0:04:49]} Nd5 {[%emt 0:05:30]} 48. Nxd5 {[%emt 0:03:00]} Rxd5 {[%emt 0:00:18]} 49. Rc3 {[%emt 0:01:08]} Kg8 {[%emt 0:00:05]} 50. Ne3 {[%emt 0:03:07]} Rxd4 {[%emt 0:00:36]} 51. Rc8+ {[%emt 0:00:04]} Kf7 {[%emt 0:00:04]} 52. Rc7+ {[%emt 0:00:03]} Kf8 {[%emt 0:00:10]} 53. Bf1 {[%emt 0:01:43]} Nxf5 {[%emt 0:02:29]} 54. Nxf5 {[%emt 0:00:38]} Rf4+ {[%emt 0:00:05]} 55. Ke3 {[%emt 0:00:22]} Rxf5 {[%emt 0:00:45]} 56. Bd3 {[%emt 0:00:22]} Re5+ {[%emt 0:00:10]} 57. Kd4 {[%emt 0:00:11]} Re7 {[%emt 0:02:04]} 58. Rc8+ {[%emt 0:00:13]} Kf7 {[%emt 0:02:00]} 59. Bxh7 {[%emt 0:00:06]} g6 {[%emt 0:01:52]} 60. Bg8+ {[%emt 0:00:17]} Kg7 {[%emt 0:00:04]} 61. Bxb3 {[%emt 0:00:05]} axb3 {[%emt 0:00:07]} 62. Rc3 {[%emt 0:02:02]} f5 {[%emt 0:00:23]} 63. Rxb3 {[%emt 0:00:04]} Re6 {[%emt 0:00:03]} 64. Rg3 {[%emt 0:01:19]} Kf6 {[%emt 0:00:12]} 65. b4 {[%emt 0:00:26]} f4 {[%emt 0:00:19]} 66. Rg1 {[%emt 0:00:25]} g5 {[%emt 0:00:07]} 67. a4 {[%emt 0:00:03]} Kf5 {[%emt 0:00:21]} 68. a5 {[%emt 0:00:04]} Re4+ {[%emt 0:01:22]} 0-1

[Event "Berlin Championship 2024"]
[Site "Berlin"]
[Date "2024.04.05"]
[Round "7.6"]
[White "Eilenberg, Jonas"]
[Black "Lagunow, Alexander"]
[Result "1-0"]
[ECO "E39"]
[WhiteElo "2303"]
[BlackElo "2350"]
[Annotator "RC"]
[PlyCount "55"]
[EventDate "2024.03.30"]
[EventType "swiss"]
[EventCountry "GER"]
[SourceTitle "playchess.com"]
[Source "ChessBase"]
[SourceQuality "1"]
[TimeControl "40/5400+30:1800+30"]

1. d4 {[%emt 0:00:04]} Nf6 {[%emt 0:00:24]} 2. c4 {[%emt 0:00:14]} e6 {[%emt 0:00:07]} 3. Nc3 {[%emt 0:00:09]} Bb4 {[%emt 0:00:09]} 4. Qc2 {[%emt 0:00:17]} c5 {[%emt 0:01:05]} 5. dxc5 {[%emt 0:00:09]} O-O {[%emt 0:00:34]} 6. a3 {[%emt 0:00:07]} Bxc5 {[%emt 0:00:07]} 7. Nf3 {[%emt 0:00:08]} d5 {[%emt 0:00:37]} 8. e3 {[%emt 0:04:18]} dxc4 {[%emt 0:01:45]} 9. Bxc4 {[%emt 0:00:15]} Nbd7 {[%emt 0:00:31]} 10. O-O {[%emt 0:05:08]} b6 {[%emt 0:00:23]} 11. b4 {[%emt 0:01:13]} Be7 {[%emt 0:00:12]} 12. Bb2 {[%emt 0:00:44]} a5 {[%emt 0:09:07]} 13. Rad1 {[%emt 0:09:12]} axb4 {[%emt 0:02:21]} 14. axb4 {[%emt 0:00:31]} Bb7 {[%emt 0:20:12]} 15. Nb5 {[%emt 0:04:18]} Qb8 {[%emt 0:09:00]} 16. Ng5 {[%emt 0:23:12]} Rd8 {[%emt 0:15:54]} 17. Nxf7 {[%emt 0:17:02]} Kxf7 {[%emt 0:00:19]} 18. Bxe6+ {[%emt 0:00:04]} Kxe6 {[%emt 0:22:29]} 19. Qc4+ {[%emt 0:00:13]} Bd5 {[%emt 0:00:32]} 20. Nc7+ {[%emt 0:05:00]} Kf7 {[%emt 0:01:08]} 21. Rxd5 {[%emt 0:01:31]} Nxd5 {[%emt 0:00:44]} 22. Qxd5+ {[%emt 0:00:06]} Kg6 {[%emt 0:00:34]} 23. Qe4+ {[%emt 0:04:54]} Kf7 {[%emt 0:01:01]} 24. Qe6+ {[%emt 0:00:59]} Kf8 {[%emt 0:00:04]} 25. Bxg7+ {[%emt 0:00:07]} Kxg7 {[%emt 0:00:03]} 26. Qxe7+ {[%emt 0:00:05]} Kg8 {[%emt 0:00:02]} 27. Nxa8 {[%emt 0:00:08]} Nf8 {[%emt 0:00:56]} 28. Nc7 {[%emt 0:02:02]} 1-0

[Event "Berlin Championship 2024"]
[Site "Berlin"]
[Date "2024.04.05"]
[Round "7.7"]
[White "Muse, Drazen"]
[Black "Klenburg, Michael"]
[Result "1/2-1/2"]
[ECO "E68"]
[WhiteElo "2316"]
[BlackElo "2328"]
[Annotator "RC"]
[PlyCount "85"]
[EventDate "2024.03.30"]
[EventType "swiss"]
[EventCountry "GER"]
[SourceTitle "playchess.com"]
[Source "ChessBase"]
[SourceQuality "1"]
[TimeControl "40/5400+30:1800+30"]

1. d4 {[%emt 0:05:41]} Nf6 {[%emt 0:00:32]} 2. Nf3 {[%emt 0:00:36]} g6 {[%emt 0:00:29]} 3. g3 {[%emt 0:00:46]} Bg7 {[%emt 0:00:22]} 4. Bg2 {[%emt 0:00:05]} O-O {[%emt 0:00:34]} 5. c4 {[%emt 0:00:18]} d6 {[%emt 0:00:27]} 6. Nc3 {[%emt 0:00:09]} Nbd7 {[%emt 0:00:05]} 7. O-O {[%emt 0:00:06]} e5 {[%emt 0:00:06]} 8. h3 {[%emt 0:00:51]} Re8 {[%emt 0:01:25]} 9. e4 {[%emt 0:00:31]} exd4 {[%emt 0:00:25]} 10. Nxd4 {[%emt 0:00:04]} a6 {[%emt 0:00:09]} 11. Be3 {[%emt 0:01:03]} Rb8 {[%emt 0:01:04]} 12. a4 {[%emt 0:00:46]} a5 {[%emt 0:01:52]} 13. Qc2 {[%emt 0:03:52]} c6 {[%emt 0:02:20]} 14. Rad1 {[%emt 0:00:46]} Qe7 {[%emt 0:02:44]} 15. Rfe1 {[%emt 0:00:55]} Rd8 {[%emt 0:10:25]} 16. f4 {[%emt 0:01:09]} Ne8 {[%emt 0:02:15]} 17. Bf2 {[%emt 0:02:53]} Nf8 {[%emt 0:02:02]} 18. Rd2 {[%emt 0:06:42]} h5 {[%emt 0:02:52]} 19. Nf3 {[%emt 0:04:07]} Qc7 {[%emt 0:01:25]} 20. Red1 {[%emt 0:10:12]} b6 {[%emt 0:02:03]} 21. Bd4 {[%emt 0:08:15]} Bxd4+ {[%emt 0:04:07]} 22. Nxd4 {[%emt 0:00:26]} Bb7 {[%emt 0:00:11]} 23. Nf3 {[%emt 0:06:13]} Qe7 {[%emt 0:03:00]} 24. Kh2 {[%emt 0:02:19]} Nd7 {[%emt 0:04:56]} 25. b3 {[%emt 0:04:21]} Nc5 {[%emt 0:00:52]} 26. e5 {[%emt 0:00:53]} dxe5 {[%emt 0:00:29]} 27. Nxe5 {[%emt 0:00:04]} h4 {[%emt 0:04:11]} 28. Rxd8 {[%emt 0:03:25]} hxg3+ {[%emt 0:01:32]} 29. Kxg3 {[%emt 0:00:09]} Rxd8 {[%emt 0:00:12]} 30. Rxd8 {[%emt 0:00:40]} Qxd8 {[%emt 0:00:15]} 31. Ne4 {[%emt 0:08:21]} Ne6 {[%emt 0:07:12]} 32. Qd2 {[%emt 0:04:55]} Nd4 {[%emt 0:09:53]} 33. c5 {[%emt 0:01:40]} bxc5 {[%emt 0:09:57]} 34. Kh2 {[%emt 0:00:11]} Ng7 {[%emt 0:07:35]} 35. Nxc5 {[%emt 0:01:56]} Bc8 {[%emt 0:00:15]} 36. Qf2 {[%emt 0:04:55]} Nge6 {[%emt 0:01:33]} 37. Ne4 {[%emt 0:04:46]} Kg7 {[%emt 0:04:19]} 38. Ng5 {[%emt 0:01:29]} Nxg5 {[%emt 0:02:58]} 39. fxg5 {[%emt 0:00:05]} Be6 {[%emt 0:00:24]} 40. Qf4 {[%emt 0:07:09]} c5 {[%emt 0:02:09]} 41. Nd3 {[%emt 0:31:04]} Nxb3 {[%emt 0:32:46]} 42. Qe5+ {[%emt 0:03:32]} Kg8 {[%emt 0:00:36]} 43. Nxc5 {[%emt 0:00:29]} 1/2-1/2

[Event "Berlin Championship 2024"]
[Site "Berlin"]
[Date "2024.04.05"]
[Round "7.8"]
[White "Yatskar, Martin"]
[Black "Nogly, Christoph"]
[Result "1-0"]
[ECO "D35"]
[WhiteElo "2066"]
[BlackElo "2228"]
[Annotator "RC"]
[PlyCount "75"]
[EventDate "2024.03.30"]
[EventType "swiss"]
[EventCountry "GER"]
[SourceTitle "playchess.com"]
[Source "ChessBase"]
[SourceQuality "1"]
[TimeControl "40/5400+30:1800+30"]

1. d4 {[%emt 0:00:03]} d5 {[%emt 0:00:03]} 2. c4 {[%emt 0:00:09]} e6 {[%emt 0:00:04]} 3. Nc3 {[%emt 0:00:06]} Nf6 {[%emt 0:00:03]} 4. cxd5 {[%emt 0:00:06]} exd5 {[%emt 0:00:05]} 5. Bg5 {[%emt 0:00:05]} c6 {[%emt 0:00:07]} 6. e3 {[%emt 0:00:05]} h6 {[%emt 0:00:08]} 7. Bh4 {[%emt 0:00:07]} Be7 {[%emt 0:00:07]} 8. Bd3 {[%emt 0:00:07]} O-O {[%emt 0:00:06]} 9. Nge2 {[%emt 0:02:09]} Re8 {[%emt 0:01:50]} 10. O-O {[%emt 0:00:09]} Nbd7 {[%emt 0:00:03]} 11. a4 {[%emt 0:00:22]} Nh5 {[%emt 0:11:10]} 12. Bxe7 {[%emt 0:00:53]} Qxe7 {[%emt 0:00:02]} 13. a5 {[%emt 0:04:49]} Nf8 {[%emt 0:07:12]} 14. Qd2 {[%emt 0:06:24]} f5 {[%emt 0:17:07]} 15. Rae1 {[%emt 0:10:05]} Bd7 {[%emt 0:07:54]} 16. Na4 {[%emt 0:16:02]} Rad8 {[%emt 0:02:25]} 17. b4 {[%emt 0:06:04]} g6 {[%emt 0:06:29]} 18. Nc5 {[%emt 0:09:17]} Bc8 {[%emt 0:00:35]} 19. b5 {[%emt 0:03:30]} b6 {[%emt 0:14:12]} 20. axb6 {[%emt 0:03:13]} axb6 {[%emt 0:00:10]} 21. Na4 {[%emt 0:00:18]} cxb5 {[%emt 0:15:39]} 22. Bxb5 {[%emt 0:00:28]} Bd7 {[%emt 0:00:01]} 23. Rb1 {[%emt 0:01:25]} Qd6 {[%emt 0:00:50]} 24. Nxb6 {[%emt 0:02:00]} Bxb5 {[%emt 0:02:10]} 25. Rxb5 {[%emt 0:00:07]} Qc6 {[%emt 0:00:21]} 26. Rfb1 {[%emt 0:00:29]} Ne6 {[%emt 0:00:48]} 27. Na4 {[%emt 0:06:11]} Ra8 {[%emt 0:01:51]} 28. Nc5 {[%emt 0:00:50]} Rec8 {[%emt 0:08:40]} 29. Qd3 {[%emt 0:04:17]} Nhg7 {[%emt 0:02:06]} 30. h4 {[%emt 0:04:12]} h5 {[%emt 0:01:44]} 31. Qb3 {[%emt 0:05:10]} Rd8 {[%emt 0:01:07]} 32. Nc3 {[%emt 0:00:54]} Kh7 {[%emt 0:00:27]} 33. Nxe6 {[%emt 0:02:03]} Qxe6 {[%emt 0:00:23]} 34. Nxd5 {[%emt 0:00:35]} Ra7 {[%emt 0:00:56]} 35. Nf4 {[%emt 0:00:59]} Qe7 {[%emt 0:00:13]} 36. g3 {[%emt 0:02:03]} Ra3 {[%emt 0:00:06]} 37. Qb2 {[%emt 0:00:48]} Rda8 {[%emt 0:00:35]} 38. Rb7 {[%emt 0:00:15]} 1-0

[Event "Berlin Championship 2024"]
[Site "Berlin"]
[Date "2024.04.06"]
[Round "8.1"]
[White "Baldauf, Marco"]
[Black "Poltorak, Sebastian"]
[Result "1/2-1/2"]
[ECO "E35"]
[WhiteElo "2481"]
[BlackElo "2392"]
[Annotator "TA"]
[PlyCount "116"]
[EventDate "2024.03.30"]
[EventType "swiss"]
[EventCountry "GER"]
[SourceTitle "playchess.com"]
[Source "ChessBase"]
[SourceQuality "1"]
[TimeControl "40/5400+30:1800+30"]

{[%evp 31,116,-25,-16,-29,7,-38,-41,-65,0,0,0,0,0,0,4,-19,-19,-26,0,0,12,-20,0,-106,-50,-53,-45,-36,-37,-40,-43,-47,-19,-21,-16,-13,-10,-7,0,0,0,0,12,0,0,0,0,-5,32,10,19,0,0,0,0,0,0,0,0,0,0,0,0,0,0,0,0,0,0,0,0,0,0,0,4,4,4,4,4,4,4,4,4,0,0,0,0]} 1. d4 {[%emt 0:00:05]} Nf6 {[%emt 0:00:13]} 2. c4 {[%emt 0:00:03]} e6 {[%emt 0:00:14]} 3. Nc3 {[%emt 0:00:05]} Bb4 {[%emt 0:00:06]} 4. Qc2 {[%emt 0:00:03]} d5 {[%emt 0:00:16]} 5. cxd5 {[%emt 0:00:04]} exd5 {[%emt 0:00:07]} 6. Bg5 {[%emt 0:00:05]} h6 {[%emt 0:00:17]} 7. Bh4 {[%emt 0:00:03]} g5 {[%emt 0:00:21] 7...0-0 is the modern continuation. E35: Nimzo-Indian: Classical: 4...d5 5 cxd5 exd5.} 8. Bg3 {[%emt 0:00:06]} Nc6 {[%emt 0:00:05]} 9. e3 {[%emt 0:00:07]} h5 {[%emt 0:00:06]} 10. Bb5 {[%emt 0:00:20]} h4 {[%emt 0:00:07]} 11. Be5 {[%emt 0:00:03]} Rh6 {[%emt 0:00:09]} 12. h3 {[%emt 0:05:39]} Ne4 {[%emt 0:02:23]} 13. Nge2 {[%emt 0:07:16]} Bf5 {[%emt 0:12:18]} 14. Qb3 {[%emt 0:03:58]} Nxc3 $146 {[%emt 0:07:52]} ({Predecessor:} 14... Bxc3+ 15. Nxc3 Nxc3 16. bxc3 Qd7 17. Bh2 O-O-O 18. Qa4 Rg8 19. f3 a6 20. Be2 Re8 {0-1 Sjugirov,S (2663)-Yu,Y (2764) Wch Rapid St Petersburg 2018 (9)}) 15. bxc3 {[%emt 0:14:50]} Be7 {[%emt 0:07:55]} 16. O-O {[%emt 0:16:11]} a6 {[%emt 0:21:29]} 17. Bxc6+ {[%emt 0:00:26]} bxc6 {[%emt 0:00:05]} (17... Rxc6 {looks sharper.} 18. Qxb7 Rb6 19. Qxc7 Rc8) 18. f3 {[%emt 0:11:34]} Rb8 {[%emt 0:02:29]} 19. Qa4 {[%emt 0:02:31]} Rb6 {[%emt 0:09:39]} (19... Re6 $1 $15 20. f4 Rb2 21. fxg5 (21. Qxa6 g4 $17) 21... Be4) 20. Rae1 $11 {[%emt 0:01:34]} Re6 {[%emt 0:02:46]} 21. Nc1 {[%emt 0:01:09]} f6 {[%emt 0:02:41]} 22. Bh2 $1 {[%emt 0:03:34]} (22. e4 dxe4 23. Qc4 (23. fxe4 Bg6 $17) 23... Qd5 (23... fxe5 24. fxe4 Bxh3 25. gxh3 $15) 24. Qxd5 cxd5 25. Bxc7 Rb7 26. fxe4 Rxe4 $19 (26... Bxe4 $2 27. Ba5 $19)) 22... Qd7 {[%emt 0:02:02]} 23. Nb3 {[%emt 0:07:45]} Bd3 {[%emt 0:02:52]} 24. Rf2 {[%emt 0:00:04]} Bb5 {[%emt 0:04:23]} 25. Qa5 {[%emt 0:00:04]} Bc4 {[%emt 0:00:09]} 26. Rd2 {[%emt 0:02:50]} Kf7 {[%emt 0:01:45]} (26... Bxb3 {simplifies} 27. axb3 Rxb3 28. Qa1 c5) 27. Kf2 {[%emt 0:04:34]} (27. e4 $11 {remains equal.}) 27... Rb5 {[%emt 0:05:32]} (27... Bd6 $17 28. Bxd6 Qxd6) 28. Qxc7 $15 {[%emt 0:00:50]} Qxc7 {[%emt 0:00:03]} 29. Bxc7 {[%emt 0:00:02]} Bxb3 {[%emt 0:00:05]} 30. axb3 {[%emt 0:00:03]} Rxb3 {[%emt 0:00:04]} 31. Rc2 {[%emt 0:20:02]} Rb7 {[%emt 0:00:46]} 32. Bh2 $1 {[%emt 0:00:00]} c5 {[%emt 0:04:15]} 33. Ra1 {[%emt 0:00:00]} cxd4 {[%emt 0:03:23]} 34. cxd4 {[%emt 0:00:00]} Bb4 {[%emt 0:02:01]} 35. f4 {[%emt 0:00:00]} Kg6 {[%emt 0:04:02]} 36. fxg5 {[%emt 0:00:00]} Kxg5 {[%emt 0:00:23]} 37. Ke2 {[%emt 0:00:00]} a5 {[%emt 0:02:27]} 38. Bf4+ {[%emt 0:00:33]} Kg6 {[%emt 0:00:12]} 39. Rc8 {[%emt 0:00:54]} Rbb6 {[%emt 0:01:11]} 40. Rd8 {[%emt 0:00:48]} Rb5 {[%emt 0:02:38]} 41. Rg8+ {[%emt 0:05:12]} Kf7 {[%emt 0:00:27]} 42. Ra8 {[%emt 0:00:07]} Bc3 {[%emt 0:07:10]} 43. Ra2 {[%emt 0:07:42]} Rb3 {[%emt 0:01:17]} 44. R8xa5 {[%emt 0:02:55]} Bxd4 {[%emt 0:03:29]} 45. R5a3 {[%emt 0:01:03]} Rxa3 {[%emt 0:03:22]} 46. Rxa3 {[%emt 0:00:03]} Be5 {[%emt 0:00:56]} 47. Ra4 {[%emt 0:04:50]} d4 {[%emt 0:01:30]} 48. Bxe5 {[%emt 0:00:43]} fxe5 {[%emt 0:00:05]} 49. exd4 {[%emt 0:00:03]} exd4+ {[%emt 0:00:05]} 50. Kd3 {[%emt 0:00:06]} Rg6 {[%emt 0:00:27]} 51. Ra7+ {[%emt 0:00:13]} Kg8 {[%emt 0:00:03]} 52. Ra2 {[%emt 0:00:16]} Rg3+ {[%emt 0:00:45]} 53. Kxd4 {[%emt 0:00:03]} Kg7 {[%emt 0:00:27]} 54. Ke5 {[%emt 0:00:06]} Kg6 {[%emt 0:01:11]} 55. Kf4 {[%emt 0:01:22]} Kf6 {[%emt 0:00:28]} 56. Rb2 {[%emt 0:00:23]} Ke6 {[%emt 0:00:45]} 57. Rb6+ {[%emt 0:00:18]} Kf7 {[%emt 0:00:15]} 58. Rb7+ {[%emt 0:00:26]} Kf6 {[%emt 0:00:09]} 1/2-1/2

[Event "Berlin Championship 2024"]
[Site "Berlin"]
[Date "2024.04.06"]
[Round "8.2"]
[White "Foerster, Jonas"]
[Black "Polzin, Rainer"]
[Result "1/2-1/2"]
[ECO "B40"]
[WhiteElo "2238"]
[BlackElo "2401"]
[Annotator "TA"]
[PlyCount "111"]
[EventDate "2024.03.30"]
[EventType "swiss"]
[EventCountry "GER"]
[SourceTitle "playchess.com"]
[Source "ChessBase"]
[SourceQuality "1"]
[TimeControl "40/5400+30:1800+30"]

{[%evp 9,111,0,-12,-10,12,8,2,0,0,0,27,0,0,0,40,8,20,0,50,4,12,0,0,0,-7,0,-2,-14,0,-12,0,0,9,0,0,-21,19,-25,-16,-10,-14,-31,-15,-92,-70,-102,-51,-56,-52,-45,-44,-45,-34,-40,-30,-19,-28,-28,0,0,0,-10,0,0,0,0,0,0,16,14,18,0,0,0,0,0,0,0,0,0,0,0,0,0,0,0,0,0,0,0,0,0,0,0,0,0,0,0,0,0,0,0,0,0]} 1. e4 {[%emt 0:00:15]} c5 {[%emt 0:02:07]} 2. Nf3 {[%emt 0:02:30]} e6 {[%emt 0:11:55]} 3. g3 {[%emt 0:11:44]} Nc6 {[%emt 0:02:39]} 4. Bg2 {[%emt 0:01:02]} Nf6 {[%emt 0:11:14]} 5. d3 {[%emt 0:11:55]} d5 {[%emt 0:00:32]} 6. exd5 {[%emt 0:03:53]} Nxd5 {[%emt 0:01:16]} 7. O-O {[%emt 0:00:12]} Be7 {[%emt 0:00:32]} 8. Nc3 {[%emt 0:01:16]} Nxc3 {[%emt 0:04:09]} 9. bxc3 {[%emt 0:00:04]} Bf6 {[%emt 0:00:12]} 10. Bb2 {[%emt 0:03:34]} O-O {[%emt 0:05:02]} 11. Nd2 {[%emt 0:00:35]} Qd7 {[%emt 0:12:59]} 12. Ne4 {[%emt 0:12:12]} (12. Qh5 {seems wilder.} b6 13. Be4 h6 14. f4) 12... Be7 {[%emt 0:00:04]} 13. d4 {[%emt 0:05:04]} c4 {[%emt 0:10:55]} (13... b6 $11) 14. Qh5 {[%emt 0:03:08]} (14. a4 $14 {deserves consideration.}) 14... b6 $11 {[%emt 0:16:23]} 15. Rad1 {[%emt 0:02:27][%cal Ba1d1,Bd1d5,Bd5e5][%mdl 32]} Bb7 {[%emt 0:00:21]} 16. d5 {[%emt 0:03:33]} exd5 {[%emt 0:00:02]} 17. Rxd5 {[%emt 0:00:09]} Qe6 {[%emt 0:00:16]} 18. Ng5 {[%emt 0:05:54]} Bxg5 $1 {[%emt 0:03:31]} 19. Qxg5 {[%emt 0:07:23]} Na5 {[%emt 0:05:17][%cal Of8e8]} 20. Re5 {[%emt 0:03:44]} Qd6 {[%emt 0:05:11]} 21. Bxb7 {[%emt 0:00:30]} Nxb7 {[%emt 0:00:02]} 22. Rd5 {[%emt 0:00:28]} Qg6 {[%emt 0:02:13]} 23. Qd2 {[%emt 0:03:34]} (23. Qxg6 {simplifies} hxg6 24. Rfd1 Rfd8 25. R5d4) 23... Nc5 {[%emt 0:00:34]} 24. Ba3 {[%emt 0:00:52]} Ne4 {[%emt 0:00:09]} 25. Qd4 {[%emt 0:03:15]} Rfe8 {[%emt 0:00:16] Black wants to play ...Qc6.} 26. Bc1 {[%emt 0:00:19]} (26. Re1 $1 $11) 26... h6 {[%emt 0:00:48]} 27. Bf4 {[%emt 0:02:52][%cal Of1e1]} Nf6 {[%emt 0:01:12]} (27... Qc6 $17 {[%cal Oe4c3] And now ...Nxc3! would win.} 28. Re1 Ng5 (28... Nxc3 29. Rde5 $11) 29. Rxe8+ Rxe8 30. Bxg5 Re1+ (30... hxg5 31. Rd8 $11) 31. Kg2 hxg5) 28. Re5 $15 {[%emt 0:02:09]} Qxc2 {[%emt 0:02:58]} 29. Qxc4 {[%emt 0:00:28]} Rec8 {[%emt 0:00:28]} 30. Qa6 {[%emt 0:03:41]} Rd8 {[%emt 0:01:13]} ({Much worse is} 30... Qxc3 $6 31. Rc1 Qxc1+ 32. Bxc1 Rxc1+ 33. Kg2 $16) 31. Rc1 {[%emt 0:04:12]} Rd1+ {[%emt 0:00:20]} (31... Qd3 {simplifies} 32. Qxd3 Rxd3 33. c4 g5) 32. Rxd1 {[%emt 0:00:03]} Qxd1+ {[%emt 0:00:01]} 33. Kg2 {[%emt 0:00:07]} Nd5 {[%emt 0:01:26] [#] aiming for ...Nxf4+.} (33... Qd7 {simplifies} 34. Qb5 Qxb5 35. Rxb5 Rc8) 34. Qc4 {[%emt 0:00:44] The position is equal.} Rd8 {[%emt 0:00:22]} 35. Qe4 {[%emt 0:01:03]} Nxc3 {[%emt 0:00:47]} 36. Re8+ {[%emt 0:00:05]} Rxe8 {[%emt 0:00:01]} 37. Qxe8+ $11 {[%emt 0:00:07][%mdl 4096] Endgame. KQB-KQN} Kh7 {[%emt 0:00:02] [#] Threatens to win with ...Qd5+.} 38. Qxf7 {[%emt 0:00:26] Qf5+ would now be deadly.} Qd5+ {[%emt 0:00:22]} 39. Qxd5 {[%emt 0:00:06]} Nxd5 {[%emt 0:00:01] KB-KN} 40. Bd2 {[%emt 0:01:34]} Kg6 {[%emt 0:00:08]} 41. g4 {[%emt 0:03:46]} h5 {[%emt 0:12:35]} 42. h3 {[%emt 0:00:50]} hxg4 {[%emt 0:07:16]} 43. hxg4 {[%emt 0:00:08]} Kf6 {[%emt 0:00:01]} 44. f4 {[%emt 0:00:26]} g6 {[%emt 0:01:00]} 45. Kf3 {[%emt 0:12:01]} Ke6 {[%emt 0:00:06]} 46. a4 {[%emt 0:00:30]} Nf6 {[%emt 0:10:01]} 47. a5 {[%emt 0:01:25]} Nd5 {[%emt 0:01:40]} 48. axb6 {[%emt 0:00:19]} axb6 {[%emt 0:00:16][%cal Ba7b6,Bb6b5][%mdl 32]} 49. Be3 {[%emt 0:01:56]} Nxe3 {[%emt 0:01:33]} 50. Kxe3 {[%emt 0:00:05] KPP-KPP} Kd5 {[%emt 0:00:09]} 51. Kd3 {[%emt 0:00:12]} b5 {[%emt 0:00:07]} 52. Kc3 {[%emt 0:00:15]} Ke4 {[%emt 0:00:12]} 53. f5 {[%emt 0:00:03]} gxf5 {[%emt 0:00:05]} 54. gxf5 {[%emt 0:00:02]} Kxf5 {[%emt 0:00:08]} 55. Kb4 {[%emt 0:00:02]} Kg4 {[%emt 0:00:07]} 56. Kxb5 {[%emt 0:00:04] Weighted Error Value: White=0.09 (flawless) /Black=0.09 (flawless) .  Mistake:       	White=2     	Black=2      Inaccurate:     	White=4     	Black=4      OK:         	White=20    	Black=20     Best:        	White=2     	Black=1      Strong:       	---       	Black=1} 1/2-1/2